bitfinex/quotes_ETHUSD_20251206
["timestamp","ask_amount","ask_price","bid_price","bid_amount"]
[1765054169007,1.15114539,3041.0,3040.6,0.486]
[1765054169237,4.43954076,3041.0,3040.6,0.486]
[1765054170435,1.15114539,3041.0,3040.6,0.486]
[1765054172930,1.15114539,3041.0,3040.6,3.77481932]
[1765054173513,1.15114539,3041.0,3040.7,0.486]
[1765054174639,1.15114539,3041.2,3040.9,0.4531]
[1765054175043,1.15114539,3041.2,3040.9,0.9391]
[1765054175249,5.03917729,3041.4,3041.1,0.4531]
[1765054175462,0.50411773,3041.3,3041.1,0.4531]
[1765054175822,1.15114539,3041.2,3041.0,0.486]
[1765054176330,0.50411773,3041.3,3041.1,0.4531]
[1765054176644,5.03917729,3041.4,3041.2,0.4531]
[1765054178849,5.03917729,3041.4,3041.0,0.486]
[1765054179749,1.75115639,3041.4,3041.0,0.486]
[1765054180725,1.15114539,3041.2,3041.0,0.486]
[1765054181847,1.15114539,3041.2,3040.4,6.84294993]
[1765054181848,0.15,3041.1,3040.4,6.84294993]
[1765054182161,1.15114539,3041.0,3040.5,1.21159411]
[1765054182523,1.15114539,3041.0,3040.7,3.28871157]
[1765054182953,1.15114539,3041.0,3040.8,0.486]
[1765054187647,1.15114539,3041.0,3040.9,0.4531]
[1765054192361,1.15114539,3041.0,3040.7,3.28871157]
[1765054192535,1.15114539,3041.0,3040.7,3.74151157]
[1765054193356,1.15114539,3041.0,3040.8,0.4528]
[1765054197337,1.15114539,3041.0,3040.9,0.4932]
[1765054197537,1.15114539,3041.2,3040.9,0.4932]
[1765054197745,1.15114539,3041.2,3041.1,0.4932]
[1765054198238,1.15114539,3041.2,3041.0,0.4528]
[1765054199846,1.15114539,3041.2,3041.1,0.946]
[1765054200837,5.03913195,3041.4,3041.1,0.4932]
[1765054200838,0.600011,3041.4,3041.1,0.4932]
[1765054201171,0.600011,3041.4,3041.3,0.4932]
[1765054201669,0.600011,3041.4,3041.3,0.946]
[1765054203873,0.600011,3041.4,3041.3,0.4932]
[1765054205866,0.600011,3041.4,3041.1,0.4528]
[1765054206070,1.15114539,3041.3,3041.1,0.4528]
[1765054210270,0.19110219,3041.2,3040.3,0.518]
[1765054210476,0.15,3040.9,3040.5,3.28890782]
[1765054210771,4.43944671,3041.1,3040.5,3.28890782]
[1765054210976,4.43944671,3041.1,3040.6,0.4528]
[1765054215877,1.15114539,3041.1,3040.6,3.74162328]
[1765054216777,1.15114539,3041.1,3040.7,0.4528]
[1765054227286,1.15114539,3041.1,3040.7,3.74151408]
[1765054228487,1.15114539,3041.1,3040.7,0.492]
[1765054228680,1.66914539,3041.3,3041.0,0.4551]
[1765054228860,2.11011418,3041.3,3041.2,0.4551]
[1765054229687,1.58739714,3041.4,3041.2,0.4551]
[1765054229857,1.58739714,3041.4,3041.3,0.4551]
[1765054229858,0.600011,3041.4,3041.3,0.4551]
[1765054230263,0.600011,3041.4,3041.3,0.9471]
[1765054235292,0.600011,3041.4,3041.1,0.492]
[1765054235471,1.15114539,3041.3,3041.1,0.492]
[1765054239599,0.600011,3041.4,3041.2,0.4551]
[1765054239778,0.600011,3041.4,3041.3,0.4551]
[1765054240502,0.600011,3041.4,3041.3,0.9471]
[1765054243201,0.600011,3041.4,3041.3,4.2351676]
[1765054243610,0.600011,3041.4,3041.3,4.97601099]
[1765054248407,0.600011,3041.4,3041.3,1.68794339]
[1765054248634,0.600011,3041.4,3041.3,0.9471]
[1765054253014,0.750011,3041.4,3041.1,3.28823748]
[1765054253316,0.750011,3041.4,3041.1,0.4817]
[1765054253690,0.600011,3041.4,3041.1,0.4817]
[1765054255602,0.600011,3041.4,3041.2,3.28817572]
[1765054255990,0.600011,3041.4,3041.2,3.76987572]
[1765054256624,0.600011,3041.4,3041.2,0.4817]
[1765054258594,0.600011,3041.4,3041.2,3.76986579]
[1765054258995,0.600011,3041.4,3041.2,0.4817]
[1765054259195,0.600011,3041.4,3041.1,3.28827958]
[1765054259408,0.600011,3041.4,3041.1,3.76997958]
[1765054259604,0.600011,3041.4,3040.9,0.72559411]
[1765054259605,0.15,3041.2,3040.9,0.72559411]
[1765054259830,0.15,3041.2,3040.8,0.4817]
[1765054260037,0.15,3041.2,3040.9,0.4817]
[1765054260336,1.15114539,3041.3,3040.9,3.77019166]
[1765054260819,1.15114539,3041.3,3040.7,3.80671445]
[1765054260820,0.600011,3041.4,3041.0,0.4817]
[1765054262497,1.75115639,3041.4,3041.0,0.4817]
[1765054262706,2.6191028,3041.4,3040.8,4.49590237]
[1765054262906,2.6191028,3041.4,3040.8,4.01420237]
[1765054263109,2.6191028,3041.4,3040.8,4.49590237]
[1765054263514,2.4691028,3041.4,3040.8,4.49590237]
[1765054264214,2.4691028,3041.4,3040.5,0.4817]
[1765054264215,1.15114539,3041.0,3040.5,0.4817]
[1765054264415,1.15114539,3041.2,3040.5,0.9997]
[1765054264597,1.15114539,3041.2,3040.6,3.28882439]
[1765054264598,1.15114539,3040.9,3040.6,3.28882439]
[1765054264802,1.15114539,3040.9,3040.5,0.518]
[1765054265023,0.05,3040.8,3040.5,0.518]
[1765054265209,0.05,3040.8,3040.5,4.28863029]
[1765054265413,1.15114539,3040.9,3040.5,4.28863029]
[1765054265937,1.15114539,3040.9,3040.6,0.4817]
[1765054274610,1.15114539,3040.9,3040.6,3.77051349]
[1765054276712,2.13859003,3041.2,3040.8,0.4719]
[1765054277048,1.15114539,3041.0,3040.8,0.4719]
[1765054278854,1.15114539,3041.0,3040.8,0.9536]
[1765054280852,1.15114539,3041.0,3040.8,0.4719]
[1765054281023,1.15114539,3041.0,3040.6,3.77727586]
[1765054281223,1.15114539,3041.0,3040.6,3.28877586]
[1765054281548,1.15114539,3041.0,3040.7,0.4885]
[1765054283857,1.15114539,3041.0,3040.7,3.77719589]
[1765054287146,1.30114539,3040.8,3040.4,1.0065]
[1765054287445,1.30114539,3040.8,3040.5,3.28886504]
[1765054287644,1.30114539,3040.8,3040.5,3.77736504]
[1765054287848,1.15114539,3040.8,3040.6,0.4885]
[1765054297773,1.15114539,3040.8,3040.7,0.4561]
[1765054298164,1.15114539,3041.0,3040.7,0.4561]
[1765054300863,2.49661269,3046.0,3040.9,10.07295231]
[1765054300864,0.600011,3041.4,3040.9,10.07295231]
[1765054301064,1.15114539,3041.3,3040.8,4.29507377]
[1765054301371,1.15114539,3041.3,3040.8,3.80657377]
[1765054301575,1.15114539,3041.3,3040.9,4.24883497]
[1765054303580,1.15114539,3041.3,3041.0,0.4885]
[1765054307882,1.15114539,3041.3,3040.9,0.47184203]
[1765054308087,1.15114539,3041.3,3040.9,0.96034203]
[1765054308383,0.15,3041.0,3040.5,0.72559411]
[1765054308562,1.30114539,3040.9,3040.3,0.4885]
[1765054308768,1.15114539,3040.7,3040.3,0.4885]
[1765054308985,1.15114539,3040.7,3040.3,3.77763188]
[1765054309482,1.15114539,3040.7,3040.3,3.28913188]
[1765054309690,1.15114539,3040.7,3040.4,0.4885]
[1765054310187,1.15114539,3040.7,3040.4,3.77753919]
[1765054311987,1.15114539,3040.7,3040.4,3.28903919]
[1765054312159,1.15114539,3040.7,3040.5,0.4616]
[1765054312589,1.15114539,3040.7,3040.3,4.0147432]
[1765054312886,1.15114539,3040.7,3040.3,4.4763432]
[1765054313087,1.15114539,3040.9,3040.6,0.465]
[1765054313282,4.43950824,3041.1,3040.6,0.9266]
[1765054313694,4.43950824,3041.1,3040.7,0.4616]
[1765054314897,4.43923622,3041.3,3040.7,3.75031296]
[1765054314898,4.43927866,3041.3,3040.7,3.75031296]
[1765054315100,1.15114539,3041.1,3040.7,3.75031296]
[1765054315264,1.15114539,3041.1,3040.6,3.28879633]
[1765054315596,1.15114539,3041.1,3040.7,0.4616]
[1765054317996,1.15114539,3041.1,3040.7,3.75029726]
[1765054318375,1.15114539,3041.1,3040.8,0.4616]
[1765054318889,1.15114539,3041.1,3041.0,0.465]
[1765054319194,4.43927866,3041.3,3041.0,0.465]
[1765054319895,1.15114539,3041.3,3041.0,0.465]
[1765054320612,0.600011,3041.4,3041.2,0.465]
[1765054320778,1.15114539,3041.3,3041.2,0.465]
[1765054320983,1.15114539,3041.3,3040.9,3.28849027]
[1765054321184,1.15114539,3041.3,3041.0,0.4616]
[1765054322099,1.15114539,3041.3,3040.8,3.28857432]
[1765054322492,1.15114539,3041.3,3040.7,0.4616]
[1765054322493,1.15114539,3041.1,3040.7,0.4616]
[1765054322898,1.15114539,3041.1,3040.7,3.75030165]
[1765054323182,1.15114539,3041.1,3041.0,0.465]
[1765054323381,1.15114539,3041.3,3041.0,0.465]
[1765054323785,1.15114539,3041.3,3041.0,0.9266]
[1765054325807,1.15114539,3041.3,3041.0,0.465]
[1765054328882,4.43923136,3041.3,3041.0,0.465]
[1765054329082,1.30114539,3041.1,3040.6,3.80678777]
[1765054329391,1.15114539,3040.9,3040.6,0.518]
[1765054329809,1.15114539,3040.9,3040.6,4.26842099]
[1765054329991,1.15114539,3041.1,3040.3,1.70519411]
[1765054330306,1.15114539,3040.9,3040.4,3.7505633]
[1765054330687,1.15114539,3040.9,3040.5,0.4616]
[1765054330910,1.15114539,3040.9,3040.5,3.75052603]
[1765054331409,1.15114539,3040.9,3040.6,0.4616]
[1765054332105,1.15114539,3040.9,3040.4,3.75060221]
[1765054332283,1.15114539,3040.9,3040.5,0.4616]
[1765054334092,1.30114539,3040.9,3040.4,3.28900707]
[1765054334292,1.15114539,3040.9,3040.4,3.75060707]
[1765054338918,1.15114539,3040.9,3040.4,3.28900707]
[1765054339099,1.15114539,3040.9,3040.5,0.4616]
[1765054341827,1.15114539,3040.9,3040.5,3.75052972]
[1765054342513,1.15114539,3040.9,3040.5,3.76972972]
[1765054342717,1.15114539,3040.9,3040.6,0.4808]
[1765054343932,1.15114539,3041.1,3040.8,0.4841]
[1765054344224,1.15114539,3041.1,3041.0,0.4841]
[1765054344389,1.86073003,3041.1,3041.0,0.4841]
[1765054345722,0.70958464,3041.1,3041.0,0.4841]
[1765054346113,0.70958464,3041.1,3041.0,0.9649]
[1765054346421,4.43925308,3041.3,3041.0,0.9649]
[1765054346598,1.15114539,3041.1,3041.0,0.9649]
[1765054346926,1.15114539,3041.1,3041.0,0.4841]
[1765054347920,1.15114539,3041.3,3041.0,0.9649]
[1765054348127,1.15114539,3041.1,3041.0,0.9649]
[1765054348703,0.600011,3041.4,3041.0,4.25328985]
[1765054348908,0.600011,3041.4,3041.3,0.4841]
[1765054349318,0.600011,3041.4,3041.3,0.9649]
[1765054360554,0.600011,3041.4,3041.3,0.4841]
[1765054360711,0.600011,3041.4,3041.3,0.9649]
[1765054365543,5.18911609,3041.4,3041.0,0.4808]
[1765054365739,5.03911609,3041.4,3041.0,0.4808]
[1765054366945,1.75115639,3041.4,3041.0,0.4808]
[1765054370538,5.03912578,3041.4,3041.0,0.4808]
[1765054371448,1.75115639,3041.4,3041.0,0.4808]
[1765054377548,5.03912156,3041.4,3041.0,0.4808]
[1765054380640,0.15,3041.1,3040.7,0.4589]
[1765054380842,0.15,3040.8,3040.3,3.74797691]
[1765054381333,0.15,3040.8,3040.4,0.4589]
[1765054382241,1.15114539,3041.0,3040.4,0.4589]
[1765054383018,3.28850011,3040.9,3040.4,0.4589]
[1765054383248,1.15114539,3040.8,3040.4,0.4589]
[1765054384238,1.15114539,3040.8,3040.2,3.80721256]
[1765054384433,1.15114539,3040.8,3040.2,5.07125185]
[1765054384756,1.15114539,3040.8,3040.3,0.4589]
[1765054385344,0.98744464,3041.1,3040.7,0.4809]
[1765054385544,4.43932342,3041.2,3041.0,0.4809]
[1765054385545,3.28817803,3041.2,3041.0,0.4809]
[1765054385743,3.28817803,3041.2,3040.3,7.03716713]
[1765054385744,1.15114539,3041.1,3040.3,3.28911804]
[1765054385948,1.15114539,3040.9,3040.3,3.28911804]
[1765054386256,1.15114539,3040.9,3040.4,0.4589]
[1765054387761,1.15114539,3040.9,3040.4,3.74788109]
[1765054388361,1.15114539,3040.9,3040.5,0.4589]
[1765054390333,4.43946674,3041.1,3040.8,0.4809]
[1765054390533,5.49287836,3041.1,3040.8,0.4809]
[1765054390753,1.15114539,3040.9,3040.7,0.4589]
[1765054390957,1.15114539,3040.9,3040.5,0.4589]
[1765054394735,4.43969042,3040.9,3040.2,6.84608956]
[1765054395062,0.15,3040.6,3040.2,7.30498956]
[1765054395263,0.15,3040.6,3040.2,8.45661446]
[1765054395465,1.15114539,3040.7,3040.3,0.4589]
[1765054396562,1.15114539,3040.9,3040.6,0.4809]
[1765054396932,1.15114539,3040.9,3040.6,0.9398]
[1765054400063,4.43964877,3040.9,3040.6,0.4809]
[1765054400563,5.37935788,3040.9,3040.6,0.4809]
[1765054400864,5.37935788,3040.9,3040.3,3.28910999]
[1765054400865,1.30114539,3040.7,3040.3,3.28910999]
[1765054401067,1.30114539,3040.7,3040.3,3.75450999]
[1765054401271,1.30114539,3040.7,3040.4,0.4654]
[1765054401858,1.30114539,3040.5,3040.0,0.001]
[1765054402043,1.30114539,3040.3,3040.0,0.001]
[1765054402558,1.30114539,3040.3,3040.0,0.4664]
[1765054402765,1.30114539,3040.3,3040.0,0.001]
[1765054403165,1.15114539,3040.1,3040.0,0.001]
[1765054404983,1.30114539,3040.1,3040.0,0.001]
[1765054406482,4.59051087,3040.1,3040.0,0.001]
[1765054407591,4.74051087,3040.1,3040.0,0.001]
[1765054407795,4.87221393,3040.1,3040.0,0.001]
[1765054407966,5.8623805,3040.1,3040.0,0.001]
[1765054410592,5.7123805,3040.1,3040.0,0.001]
[1765054412896,5.9623805,3040.1,3040.0,0.001]
[1765054413382,6.00349756,3040.1,3040.0,0.001]
[1765054416680,5.9623805,3040.1,3040.0,0.001]
[1765054416995,6.4803805,3040.1,3040.0,0.001]
[1765054419388,5.9623805,3040.1,3040.0,0.001]
[1765054419583,6.4803805,3040.1,3040.0,0.001]
[1765054421094,5.8123805,3040.1,3040.0,0.001]
[1765054421325,6.0803805,3040.1,3040.0,0.001]
[1765054421500,6.2303805,3040.1,3040.0,0.001]
[1765054427506,5.5623805,3040.1,3040.0,0.4599]
[1765054427678,5.09021393,3040.1,3040.0,0.4599]
[1765054428835,1.28284845,3040.1,3040.0,0.4599]
[1765054429008,0.13170306,3040.1,3040.0,0.9253]
[1765054430694,1.15114539,3040.3,3040.0,0.9253]
[1765054430901,2.13885986,3040.3,3040.2,0.6438]
[1765054431388,2.13885986,3040.3,3040.2,1.1254]
[1765054431904,1.15114539,3040.5,3040.2,1.1254]
[1765054432109,1.15114539,3040.5,3040.4,0.4624]
[1765054432705,4.92167813,3040.5,3040.4,0.944]
[1765054433292,4.92167813,3040.5,3040.2,0.663]
[1765054433610,1.15114539,3040.3,3040.2,0.663]
[1765054433822,1.15114539,3040.3,3040.2,0.1814]
[1765054434012,1.15114539,3040.3,3040.2,0.6438]
[1765054434403,1.15114539,3040.3,3040.2,1.1254]
[1765054441119,1.63274539,3040.5,3040.2,1.1254]
[1765054441292,1.15114539,3040.7,3040.4,0.4719]
[1765054441491,1.15114539,3040.7,3040.6,0.4719]
[1765054441703,0.98756166,3040.8,3040.6,0.4719]
[1765054441902,0.518,3041.1,3040.7,0.4787]
[1765054441903,1.15114539,3040.9,3040.7,0.4787]
[1765054442104,1.15114539,3040.9,3040.7,0.9506]
[1765054442302,1.15114539,3040.9,3040.8,0.4719]
[1765054442504,1.15114539,3040.9,3040.8,0.9506]
[1765054442712,4.4396455,3040.9,3040.8,0.9506]
[1765054446925,4.4396455,3040.9,3040.8,0.4719]
[1765054453595,1.15114539,3041.3,3040.8,7.27868956]
[1765054453915,1.15114539,3041.3,3041.2,0.4719]
[1765054454631,1.15114539,3041.3,3041.2,0.9506]
[1765054456314,1.15114539,3041.3,3041.2,0.4719]
[1765054456508,1.15114539,3041.3,3041.2,0.9506]
[1765054457024,0.001,3041.4,3041.2,0.9506]
[1765054457226,0.001,3041.4,3041.3,0.9506]
[1765054460233,0.001,3041.4,3041.3,0.4719]
[1765054460405,0.151,3041.4,3040.9,0.995]
[1765054460737,1.15114539,3041.3,3040.9,1.42336515]
[1765054460912,1.15114539,3041.3,3041.0,0.477]
[1765054462239,1.15114539,3041.3,3041.2,0.4587]
[1765054464513,1.15114539,3041.3,3041.0,0.477]
[1765054466104,1.15114539,3041.1,3040.8,0.518]
[1765054466304,1.15114539,3041.1,3040.8,0.89866459]
[1765054466505,1.15114539,3041.1,3040.9,0.477]
[1765054467004,1.15114539,3041.1,3041.0,0.4587]
[1765054469838,1.15114539,3041.1,3040.9,0.477]
[1765054472354,1.15114539,3041.1,3041.0,0.4587]
[1765054475236,1.15114539,3041.3,3041.0,3.74708407]
[1765054475431,1.15114539,3041.3,3041.2,0.4587]
[1765054475839,1.15114539,3041.3,3041.2,0.9357]
[1765054476935,1.15114539,3041.3,3041.2,0.4587]
[1765054477140,0.001,3041.4,3041.2,0.4587]
[1765054477331,1.15214539,3041.4,3041.3,0.4587]
[1765054480355,4.59011288,3041.4,3040.8,3.80656306]
[1765054480530,1.15114539,3041.0,3040.8,0.518]
[1765054480933,0.15,3040.9,3040.5,0.477]
[1765054481128,1.15114539,3040.8,3040.5,0.477]
[1765054481627,1.15114539,3040.8,3040.7,0.4587]
[1765054482260,1.15114539,3040.8,3040.7,0.9357]
[1765054483653,1.15114539,3040.8,3040.7,0.4587]
[1765054484035,1.15114539,3040.8,3040.7,0.9357]
[1765054490462,1.15114539,3040.8,3040.7,0.4587]
[1765054490657,4.48065552,3041.0,3040.7,0.4587]
[1765054490858,1.15114539,3040.8,3040.7,0.4587]
[1765054492768,1.15114539,3040.8,3040.4,3.28900322]
[1765054492969,1.15114539,3040.8,3040.5,0.4705]
[1765054493360,1.15114539,3040.8,3040.7,0.4731]
[1765054495642,1.15114539,3040.8,3040.7,0.9436]
[1765054496263,0.15,3040.8,3040.3,0.518]
[1765054496465,1.15114539,3040.7,3040.5,0.4705]
[1765054497266,1.15114539,3040.7,3040.6,0.4731]
[1765054498873,1.15114539,3040.7,3040.5,0.4705]
[1765054499971,3.28852432,3040.9,3040.5,0.4705]
[1765054500146,1.15114539,3040.8,3040.5,0.4705]
[1765054502574,1.15114539,3040.8,3040.7,0.4731]
[1765054502978,1.15114539,3040.8,3040.7,0.9436]
[1765054509282,1.15114539,3040.8,3040.7,0.4731]
[1765054509455,1.30114539,3040.8,3040.4,3.28901611]
[1765054509652,0.15,3040.4,3040.0,0.001]
[1765054509852,1.15114539,3040.6,3040.1,0.1921]
[1765054510071,0.98763643,3040.7,3040.5,0.4731]
[1765054510265,4.4395391,3041.0,3040.6,0.4731]
[1765054510465,1.15114539,3040.8,3040.6,0.4731]
[1765054510665,1.15114539,3040.8,3040.7,0.4705]
[1765054510861,1.15114539,3040.8,3040.7,0.9436]
[1765054511067,2.13866804,3040.8,3040.7,0.9436]
[1765054513569,0.98752265,3040.8,3040.7,0.9436]
[1765054513957,1.15114539,3041.0,3040.7,0.9436]
[1765054514385,1.15114539,3040.8,3040.4,0.4705]
[1765054520275,4.43978842,3040.8,3040.1,0.7101]
[1765054520475,1.15114539,3040.6,3040.1,4.4992571]
[1765054520708,1.15114539,3040.6,3040.2,0.4998]
[1765054523105,1.15114539,3040.6,3040.2,3.78900871]
[1765054523506,1.15114539,3040.6,3040.3,0.4998]
[1765054523711,1.15114539,3040.6,3040.5,0.4975]
[1765054524821,1.15114539,3040.6,3040.3,0.4998]
[1765054530619,4.43978842,3040.8,3040.3,0.4998]
[1765054531018,1.15114539,3040.6,3040.3,0.4998]
[1765054533428,1.15114539,3040.6,3040.1,0.1921]
[1765054533626,0.15,3040.3,3040.0,0.001]
[1765054534226,0.15,3040.3,3040.0,0.5008]
[1765054535226,1.15114539,3040.4,3040.0,0.5008]
[1765054535535,3.28867354,3040.8,3040.3,0.4975]
[1765054535698,1.15114539,3040.7,3040.5,0.4975]
[1765054536100,1.15114539,3040.7,3040.6,0.4975]
[1765054538601,1.15114539,3040.7,3040.6,0.9973]
[1765054543736,4.4398618,3040.7,3040.6,0.9973]
[1765054549144,4.4398618,3040.7,3040.6,0.4975]
[1765054549314,5.39391816,3040.7,3040.6,0.4975]
[1765054552744,1.15114539,3040.7,3040.6,0.996]
[1765054554328,4.4398618,3040.7,3040.6,0.996]
[1765054554729,4.4398618,3040.7,3040.6,0.4975]
[1765054556472,4.4398618,3040.7,3040.4,0.4985]
[1765054556953,1.15114539,3040.5,3040.2,0.4985]
[1765054557132,1.15114539,3040.5,3040.4,0.4747]
[1765054557527,1.15114539,3040.5,3040.1,0.1994]
[1765054557528,0.55910072,3040.5,3040.1,0.1994]
[1765054557733,0.55910072,3040.5,3040.3,0.4985]
[1765054557734,1.15114539,3040.4,3040.3,0.4985]
[1765054558120,1.15114539,3040.4,3040.3,0.9732]
[1765054558450,0.7125,3040.5,3040.3,0.9732]
[1765054558655,4.43990116,3040.7,3040.4,0.9732]
[1765054558831,1.15114539,3040.5,3040.4,0.9732]
[1765054559326,1.15114539,3040.5,3040.4,0.4747]
[1765054560134,1.15114539,3040.5,3040.4,0.9311]
[1765054564336,2.13871355,3040.5,3040.4,0.9311]
[1765054566865,0.98756816,3040.5,3040.4,0.9311]
[1765054570872,0.98756816,3040.5,3040.4,0.4747]
[1765054571671,0.98756816,3040.5,3040.4,0.9311]
[1765054573872,2.13871355,3040.5,3040.4,0.9311]
[1765054575676,1.15114539,3040.5,3040.4,0.9311]
[1765054576278,2.13871355,3040.7,3040.4,0.9311]
[1765054578578,5.42743499,3040.7,3040.4,0.9311]
[1765054579980,1.15114539,3040.5,3040.4,0.9311]
[1765054585583,2.13871355,3040.7,3040.4,0.9311]
[1765054586173,2.13871355,3040.7,3040.4,0.4747]
[1765054586496,2.13871355,3040.7,3040.5,0.4784]
[1765054587179,2.13871355,3040.7,3040.6,0.4814]
[1765054587784,0.98756816,3040.7,3040.6,0.4814]
[1765054587963,3.28852394,3040.9,3040.6,0.9598]
[1765054588160,2.13865828,3040.8,3040.6,0.9598]
[1765054589289,2.13865828,3040.8,3040.7,0.4814]
[1765054589990,2.13865828,3040.8,3040.7,0.9598]
[1765054591200,2.13865828,3040.8,3040.7,0.4814]
[1765054593798,4.439578,3041.0,3040.7,0.4814]
[1765054594026,1.15114539,3040.8,3040.4,3.28902215]
[1765054594197,1.15114539,3040.8,3040.4,3.99864861]
[1765054594495,1.15114539,3040.8,3040.7,0.4814]
[1765054596575,5.42708439,3041.0,3040.7,0.9598]
[1765054600305,1.15114539,3040.8,3040.7,0.9598]
[1765054600676,5.42708439,3041.0,3040.7,0.9598]
[1765054600874,1.15114539,3040.8,3040.7,0.9598]
[1765054601302,1.15114539,3041.0,3040.7,1.38467251]
[1765054601486,2.13955753,3041.4,3040.9,0.4814]
[1765054601803,1.15114539,3041.2,3041.1,0.4814]
[1765054602186,1.15114539,3041.2,3041.1,0.9598]
[1765054602403,1.15214539,3041.4,3041.1,0.4814]
[1765054602708,1.15214539,3041.4,3041.3,0.4814]
[1765054605810,4.59011389,3041.4,3040.9,0.4784]
[1765054606007,1.15114539,3041.2,3040.9,0.4784]
[1765054606180,1.15114539,3041.2,3040.9,0.95383194]
[1765054606379,1.15114539,3041.2,3041.1,0.4814]
[1765054610214,1.15114539,3041.2,3041.1,0.9623]
[1765054611015,4.44011412,3041.4,3041.1,0.9623]
[1765054611313,1.15214539,3041.4,3041.1,0.4814]
[1765054611481,1.15214539,3041.4,3041.2,0.4809]
[1765054612889,4.44011893,3041.4,3041.2,0.4809]
[1765054613095,4.44011893,3041.4,3041.0,0.4809]
[1765054614786,1.15214539,3041.4,3041.0,0.4809]
[1765054616588,1.10214539,3041.4,3041.0,0.4809]
[1765054618218,3.28988602,3041.5,3041.0,0.4809]
[1765054618522,1.15114539,3041.4,3041.3,0.4854]
[1765054619427,4.43910678,3041.4,3041.0,0.4809]
[1765054620830,1.15114539,3041.4,3041.3,0.4854]
[1765054622021,4.43910488,3041.4,3041.3,0.4854]
[1765054622724,4.43910488,3041.4,3041.1,0.4592]
[1765054622929,4.58910488,3041.4,3040.9,0.4592]
[1765054625700,1.15114539,3041.2,3040.7,4.73522214]
[1765054625900,1.15114539,3041.2,3040.7,5.15125101]
[1765054626129,1.15114539,3041.2,3040.8,0.4592]
[1765054626632,0.15,3040.9,3040.5,0.9772]
[1765054626997,1.15114539,3041.0,3040.6,0.4592]
[1765054627210,1.15114539,3041.0,3040.6,0.98455129]
[1765054627422,1.15114539,3041.0,3040.6,0.52535129]
[1765054627733,1.15114539,3041.0,3040.7,0.4592]
[1765054629733,1.15114539,3041.2,3040.7,0.4592]
[1765054629734,1.15114539,3041.2,3040.9,0.4854]
[1765054630033,1.15114539,3041.2,3041.0,0.4854]
[1765054630337,1.04335129,3041.3,3041.1,0.4854]
[1765054630523,1.04335129,3041.3,3041.2,0.9446]
[1765054630524,0.52535129,3041.3,3041.2,0.9446]
[1765054630728,0.002,3041.5,3041.2,0.9446]
[1765054631031,0.002,3041.5,3041.3,0.4592]
[1765054632124,0.002,3041.5,3041.0,3.28836201]
[1765054632314,0.002,3041.5,3041.1,0.8916362]
[1765054632732,0.002,3041.5,3041.2,0.4592]
[1765054635534,1.15114539,3041.4,3041.2,0.4592]
[1765054636029,0.002,3041.5,3041.3,0.4854]
[1765054638801,0.002,3041.5,3041.4,0.4854]
[1765054642029,0.002,3041.5,3041.4,0.9473]
[1765054642743,0.002,3041.5,3041.4,0.4854]
[1765054647141,0.002,3041.5,3041.2,0.4619]
[1765054647312,1.15114539,3041.4,3041.2,0.4619]
[1765054647816,1.15114539,3041.4,3041.3,0.4998]
[1765054648414,1.15114539,3041.4,3041.3,0.9617]
[1765054649051,0.002,3041.5,3041.3,0.9617]
[1765054649245,0.002,3041.5,3041.4,0.4998]
[1765054651340,0.002,3041.5,3041.3,0.4619]
[1765054654071,0.002,3041.5,3041.4,0.4998]
[1765054655653,0.002,3041.5,3041.4,0.9617]
[1765054657552,0.002,3041.5,3041.4,0.4998]
[1765054657725,0.002,3041.5,3041.4,0.9617]
[1765054663145,0.002,3041.5,3041.4,4.24965949]
[1765054663341,0.002,3041.5,3041.4,5.00344244]
[1765054682173,0.002,3041.5,3041.4,1.71548295]
[1765054682470,0.002,3041.5,3041.4,5.00344244]
[1765054692747,0.002,3041.5,3041.4,4.54154244]
[1765054696589,0.002,3041.5,3041.4,4.99904244]
[1765054698596,0.152,3041.5,3041.2,0.9871782]
[1765054698793,0.152,3041.5,3040.6,0.518]
[1765054698794,0.002,3041.5,3040.6,0.518]
[1765054698976,0.98930815,3041.5,3041.2,0.4575]
[1765054699292,0.002,3041.5,3041.2,3.74566788]
[1765054699767,0.002,3041.5,3041.2,0.4575]
[1765054700575,0.002,3041.5,3040.8,0.72559411]
[1765054700776,0.002,3041.5,3041.1,0.4507]
[1765054701680,0.002,3041.5,3041.4,0.4622]
[1765054706261,0.002,3041.5,3041.3,0.4507]
[1765054706484,0.002,3041.5,3041.1,3.28824144]
[1765054706661,0.002,3041.5,3041.2,0.4507]
[1765054707889,0.002,3041.5,3041.0,3.80634696]
[1765054708075,0.002,3041.5,3041.0,5.03957046]
[1765054708795,0.002,3041.5,3041.1,0.4507]
[1765054709908,0.15,3041.2,3041.0,3.80634696]
[1765054710108,1.15114539,3041.4,3041.0,3.80634696]
[1765054710390,1.15114539,3041.4,3041.0,4.25704696]
[1765054710593,1.15114539,3041.4,3041.0,5.0116102]
[1765054716898,1.15114539,3041.4,3041.0,4.5609102]
[1765054717088,1.15114539,3041.4,3041.0,5.0116102]
[1765054717997,1.15114539,3041.4,3041.1,0.4507]
[1765054721126,0.002,3041.5,3041.1,0.4507]
[1765054726022,0.002,3041.5,3041.1,3.73896824]
[1765054726791,0.002,3041.5,3041.2,0.4507]
[1765054729898,0.002,3041.5,3041.0,5.01161077]
[1765054730122,0.002,3041.5,3041.1,0.4735]
[1765054730494,1.15114539,3041.4,3041.1,0.4735]
[1765054731431,1.15114539,3041.4,3040.6,0.4735]
[1765054731611,1.15114539,3041.4,3041.0,3.28838182]
[1765054731809,2.13847628,3041.4,3041.0,3.28838182]
[1765054732121,2.13847628,3041.4,3041.1,0.4735]
[1765054734017,2.13847628,3041.4,3041.3,0.4935]
[1765054740954,0.98733089,3041.4,3041.3,0.4935]
[1765054741939,0.98733089,3041.4,3041.1,0.4735]
[1765054743870,0.002,3041.5,3041.1,0.4735]
[1765054744024,1.15114539,3041.4,3041.1,0.4735]
[1765054744366,1.15114539,3041.4,3041.1,3.76177858]
[1765054744541,0.98931465,3041.5,3041.1,3.76177858]
[1765054744738,0.98931465,3041.5,3041.2,0.4675]
[1765054745825,0.002,3041.5,3041.2,0.4675]